Cogmind - Beta 11.1 @@@ ROGUE MODE // 2022.08.12 @ 19:49:13 Player: Inverisimilidude Result: Destroyed by H-66 Slayer with Gauss Rifle Performance ------------- Evolutions (5) 2500 Regions Visited (12) 2400 Robots Destroyed (46) 230 Value Destroyed (1196) 1196 Prototype IDs (6) 120 Alien Tech Used (0) 0 Bonus (387) 387 TOTAL SCORE: 6833 Bonus ------- High Alert Combat Kills 36 Follower Combat Kills 253 Aligned with FarCom 300 Friendly Fire -202 Cogmind --------- Core Integrity 0/1000 Matter 232/300 Energy 509/530 System Corruption 0% Temperature Cool (0) Movement Flying (119) Ox1 Location -5/Factory Parts ------- > --- POWER (2) -------- Neutrino Core Neutrino Core > --- PROPULSION (5) --- Field Propulsion Drive Field Propulsion Drive Field Propulsion Drive > --- UTILITY (6) ------ (None) > --- WEAPON (4) ------- (None) > --- INVENTORY (5) ---- Carbon-fiber Leg Flexi-carbon Leg Flexi-carbon Leg Advanced Weight Redist. System Peak State ------------ > --- POWER ------------ Light Nuclear Core > --- PROPULSION ------- Flying Fortress v7 > --- UTILITY ---------- Medium Storage Unit Transmission Jammer ECM Suite > --- WEAPON ----------- Particle Gun Gatling Laser Advanced Assault Cannon > --- INVENTORY -------- Deuterium Engine Armored Huge Wheel Armored Huge Wheel Compact Matter Pod Advanced Weight Redist. System Experimental Sensor Array Improved Shield Generator Makeshift Hacking Suite [Rating: 55] Favorites ----------- Power Deuterium Engine Engine Deuterium Engine Power Core Light Nuclear Core Propulsion Aluminum Leg Leg Aluminum Leg Wheel Armored Huge Wheel Flight Unit Flying Fortress v7 Utility Medium Storage Unit Device ECM Suite Storage Medium Storage Unit Hackware Hacking Suite Weapon Light Cannon Energy Gun Spread Laser Ballistic Gun Light Assault Rifle Ballistic Cannon Light Cannon Launcher Rocket Launcher Slashing Weapon Blade Saw Build | -11 -10 -10 -9 -9 -9 -8 -8 -7 -7 -7 -6 -5 ------- Run | Scr Mat Min Mat Min Exi Min Mat Fac Low Low Fac Fac Slots Evolved 10 | . . . 2 . . . 2 2 . . 2 2 Power 1 | . . . . . . . . . . . 1 . Propulsion 3 | . . . 1 . . . 1 1 . . . . Utility 4 | . . . . . . . 1 1 . . . 2 Weapon 2 | . . . 1 . . . . . . . 1 . Parts Attached 66 | 6 1 5 8 6 9 . 9 2 8 . 3 9 Power 11 | 1 . 1 1 . 2 . 2 . 1 . . 3 Engine 7 | 1 . 1 1 . 2 . 1 . 1 . . . Core 4 | . . . . . . . 1 . . . . 3 Reactor . | . . . . . . . . . . . . . Propulsion 15 | 2 . 2 1 2 2 . 1 . 2 . . 3 Treads . | . . . . . . . . . . . . . Leg 7 | . . 2 1 2 2 . . . . . . . Wheel 4 | 2 . . . . . . . . 2 . . . Hover . | . . . . . . . . . . . . . Flight 4 | . . . . . . . 1 . . . . 3 Utility 13 | 1 1 . 1 1 2 . 2 1 . . 2 2 Device 9 | . 1 . . 1 2 . 2 1 . . . 2 Storage 2 | 1 . . 1 . . . . . . . . . Processor . | . . . . . . . . . . . . . Hackware 2 | . . . . . . . . . . . 2 . Protection . | . . . . . . . . . . . . . Artifact . | . . . . . . . . . . . . . Weapon 27 | 2 . 2 5 3 3 . 4 1 5 . 1 1 Energy Gun 10 | 1 . 1 1 1 1 . 3 . 2 . . . Energy Cannon . | . . . . . . . . . . . . . Ballistic Gun 9 | 1 . . 2 1 1 . . . 3 . 1 . Ballistic Cannon 3 | . . 1 . . 1 . . 1 . . . . Launcher 3 | . . . 2 1 . . . . . . . . Special Weapon . | . . . . . . . . . . . . . Impact Weapon . | . . . . . . . . . . . . . Slashing Weapon 2 | . . . . . . . 1 . . . . 1 Piercing Weapon . | . . . . . . . . . . . . . Special Melee Weapon . | . . . . . . . . . . . . . Unidentified Prototypes 6 | . . . . . 2 . 1 . . . 1 2 Parts Lost 20 | . . 3 2 2 . . 3 2 4 . . 4 Power 6 | . . 1 1 . . . 2 . 1 . . 1 Propulsion 3 | . . 1 . 1 . . . . 1 . . . Utility 1 | . . . . . . . . . . . . 1 Weapon 10 | . . 1 1 1 . . 1 2 2 . . 2 Highest Loss Streak 3 | . . 2 1 2 . . 2 1 2 . . 3 To Critical Strikes . | . . . . . . . . . . . . . Average Slot Usage (%) 76 | . 96 98 91 99 100 100 64 54 62 69 65 27 Engine 7 | . 14 13 10 11 11 11 6 . 5 7 6 2 Core 1 | . . . . . . . 2 7 1 . . . Leg 11 | . . 16 25 32 33 33 . . . . . . Wheel 5 | . 28 10 . . . . . . 3 15 13 5 Flight 2 | . . . . . . . 8 7 5 . . . Device 11 | . 10 14 11 11 11 11 11 8 15 15 13 5 Storage 9 | . 14 14 11 11 11 11 9 7 7 7 6 2 Energy Gun 8 | . 14 6 6 11 11 11 13 11 4 7 6 1 Ballistic Gun 8 | . 14 14 11 10 11 11 4 . 9 7 6 2 Ballistic Cannon 6 | . . 7 11 11 11 11 5 2 7 7 6 1 Naked Turns 129 | . . . . . . . . . . . . 129 Heaviest Build 35 | 10 12 14 27 28 29 29 31 29 35 35 35 35 Greatest Support 56 | 20 20 20 30 30 30 30 50 50 56 56 56 56 Greatest Overweight (x) 10 | . . . 1 1 . . . . 10 . . 9 Average Overweight (x) . | . . . . . . . . . . . . . Largest Inventory Capacity 10 | 8 8 8 10 10 10 10 10 10 10 10 10 10 Average Capacity 9 | 6 8 8 9 10 10 10 10 10 10 10 10 7 Most Carried 10 | 4 6 8 10 10 10 10 10 10 10 8 10 10 Average Carried 8 | 1 5 7 9 9 9 9 7 7 9 8 8 6 Final Capacity 10 | 8 8 8 10 10 10 10 10 10 10 10 10 5 Final Carried 10 | 4 6 8 10 10 10 10 6 10 8 8 10 4 Class Distribution -------------------- 37% | Mutant 18% | Infiltrator-Gunner 11% | Scavenger-Gunner 11% | Infiltrator-Skirmisher 8% | Gunner 5% | Scavenger-Skirmisher 3% | Skirmisher 3% | Infiltrator-Mutant Dominant Class ---------------- Mutant | -10/Materials Mutant | -10/Mines Gunner | -9/Materials Gunner | -9/Mines Scavenger-Gunner | -9/Exiles Scavenger-Skirmisher | -8/Mines Mutant | -8/Materials Mutant | -7/Factory Infiltrator-Gunner | -7/Lower Caves Infiltrator-Gunner | -7/Lower Caves Infiltrator-Skirmisher | -6/Factory Mutant | -5/Factory Resources | -11 -10 -10 -9 -9 -9 -8 -8 -7 -7 -7 -6 -5 ----------- Run | Scr Mat Min Mat Min Exi Min Mat Fac Low Low Fac Fac Matter Collected 1482 | 193 10 256 238 147 . 122 64 24 388 . 40 . Remotely . | . . . . . . . . . . . . . Salvage Created 1018 | . 10 285 178 111 . 106 119 24 141 . 44 . Parts 70 | . 2 9 12 12 . 3 13 . 12 . 7 . Haulers Intercepted . | . . . . . . . . . . . . . Recyclers Shooed . | . . . . . . . . . . . . . Parts Field Recycled . | . . . . . . . . . . . . . Retrieved Matter . | . . . . . . . . . . . . . Parts Self-Destructed 15 | . . . . . . . . . 15 . . . Prevented . | . . . . . . . . . . . . . Kills | -11 -10 -10 -9 -9 -9 -8 -8 -7 -7 -7 -6 -5 ------- Run | Scr Mat Min Mat Min Exi Min Mat Fac Low Low Fac Fac Combat Hostiles Destroyed 39 | . . 10 8 5 . 3 5 1 7 . . . Melee 2 | . . . . . . . 1 1 . . . . Guns 19 | . . 6 2 4 . 1 4 . 2 . . . Cannons 16 | . . 4 4 1 . 2 . . 5 . . . AOE 2 | . . . 2 . . . . . . . . . Classes Destroyed 10 | . 1 3 2 . . 1 1 . 1 . 1 . Builder 2 | . . . 1 . . . . . . . 1 . Operator 1 | . 1 . . . . . . . . . . . Watcher 2 | . . . . . . . . . . . 2 . Swarmer 18 | . . 6 2 4 . . . . 6 . . . Cutter 3 | . . . . . . . 3 . . . . . Grunt 13 | . . 2 6 1 . 2 2 . . . . . Brawler 1 | . . . . . . 1 . . . . . . Sentry 3 | . . 2 . . . . . 1 . . . . Zionite 1 | . . . 1 . . . . . . . . . Thug 1 | . . . . 1 . . . . . . . . Mutant 1 | . . . . . . . . . 1 . . . Best Kill Streak 4 | . 1 3 4 4 . 3 3 1 3 . 2 . Combat Bots Only 4 | . . 3 4 4 . 3 3 1 3 . . . Max Kills in Single Turn 2 | . 1 1 2 2 . 1 1 1 1 . 2 . Gunslinging . | . . . . . . . . . . . . . Exploded 1 | . . . 1 . . . . . . . . . Melee 1 | . . . . . . . 1 1 . . . . Uniques/NPCs Destroyed . | . . . . . . . . . . . . . Combat | -11 -10 -10 -9 -9 -9 -8 -8 -7 -7 -7 -6 -5 -------- Run | Scr Mat Min Mat Min Exi Min Mat Fac Low Low Fac Fac Damage Taken 4620 | . . 475 259 294 . 116 712 426 740 . 176 1422 Core 1460 | . . 122 42 32 . 34 58 68 97 . . 1007 Absorbed by Shields . | . . . . . . . . . . . . . Core Remaining (%) 81 | 100 . 51 . . . 73 89 . . 76 100 . Volleys Fired 115 | . 2 20 25 15 . 7 16 5 23 . 2 . Largest 3 | . 2 2 3 3 . 3 3 2 3 . 3 . Hottest 153 | . 60 65 95 133 . 123 130 130 153 . 153 . Shots Fired 272 | . 4 40 55 43 . 21 30 10 63 . 6 . Gun 183 | . 4 32 29 27 . 14 26 7 40 . 4 . Cannon 83 | . . 8 21 15 . 7 4 3 23 . 2 . Launcher 6 | . . . 5 1 . . . . . . . . Special . | . . . . . . . . . . . . . Kinetic 183 | . 2 28 44 27 . 14 8 3 53 . 4 . Thermal 65 | . 2 . . 15 . 7 22 7 10 . 2 . Explosive 6 | . . . 5 1 . . . . . . . . Electromagnetic 18 | . . 12 6 . . . . . . . . . Robot Hit Streak 22 | . 2 22 9 6 . 5 4 8 7 . 4 . Robot Miss Streak 10 | . 1 4 4 9 . 6 4 1 10 . 1 . Penetration Max . | . . . . . . . . . . . . . Secondary Targets 3 | . . 2 . . . . 1 . . . . . Max Gunslinging Chain 1 | . . 1 . . . . 1 . . . . . Shots Hit Robots 182 | . 3 30 34 27 . 14 23 12 33 . 4 2 Core Hits 109 | . 2 18 18 16 . 14 13 3 18 . 6 1 Critical Kills . | . . . . . . . . . . . . . Critical Parts Destroyed . | . . . . . . . . . . . . . Critical Strikes 5 | . . . . . . . 2 2 . . . 1 Blast 1 | . . . . . . . . 1 . . . . Sever 4 | . . . . . . . 2 1 . . . 1 Melee Attacks 16 | . . . . . . . 4 7 . . . 5 Impact . | . . . . . . . . . . . . . Slashing 16 | . . . . . . . 4 7 . . . 5 Piercing . | . . . . . . . . . . . . . Sneak Attacks 1 | . . . . . . . . 1 . . . . Combat Hostiles . | . . . . . . . . . . . . . Follow-up Attacks . | . . . . . . . . . . . . . Damage Inflicted 3674 | . 30 445 879 447 . 216 368 368 680 . 120 121 Guns 1719 | . 30 286 158 239 . 127 278 93 442 . 66 . Cannons 999 | . . 124 227 143 . 89 34 90 238 . 54 . Explosions 702 | . . 35 494 65 . . . 108 . . . . Melee 243 | . . . . . . . 56 77 . . . 110 Ramming 11 | . . . . . . . . . . . . 11 Kinetic 1698 | . 7 241 363 233 . 114 62 90 534 . 54 . Thermal 972 | . 23 35 . 149 . 102 250 201 146 . 66 . Explosive 559 | . . . 494 65 . . . . . . . . Electromagnetic 191 | . . 169 22 . . . . . . . . . Impact . | . . . . . . . . . . . . . Slashing 243 | . . . . . . . 56 77 . . . 110 Piercing . | . . . . . . . . . . . . . Highest Corruption 2 | . . . . . . . . . . . 2 . Average Corruption 2 | . . . . . . . . . . . 2 . Corruption Purged . | . . . . . . . . . . . . . Corruption Blocked . | . . . . . . . . . . . . . Effects 1 | . . . . . . . . . . . 1 . Message Errors 1 | . . . . . . . . . . . 1 . Overload Shots . | . . . . . . . . . . . . . Overflow Damage 17 | . . . . . . . . . . . . 17 Projectiles . | . . . . . . . . . . . . . Explosions . | . . . . . . . . . . . . . Melee 17 | . . . . . . . . . . . . 17 Knockbacks 10 | . . 1 1 4 . 1 . . 2 . 1 . Impact . | . . . . . . . . . . . . . Kinetic 9 | . . 1 1 4 . 1 . . 1 . 1 . Secondary 1 | . . . . . . . . . 1 . . . Self-Inflicted Damage 90 | . . 36 . 49 . . . . . . . 5 Shots 2 | . . 1 . 1 . . . . . . . . Rammed 3 | . . . . . . . . . . . . 3 Targets Rammed 3 | . . . . . . . . . . . . 3 Kicked . | . . . . . . . . . . . . . Crushed . | . . . . . . . . . . . . . Highest Temperature 332 | . 40 73 96 84 . 127 332 307 317 . 60 5 Average Temperature 88 | . 24 38 23 37 . 70 151 160 103 . 37 5 Received Heat Transfer 1149 | . . 144 114 42 . 63 243 168 219 . . 156 Effects 7 | . . . . . . . 3 1 3 . . . Energy Bleed 1 | . . . . . . . . 1 . . . . Interference 6 | . . . . . . . 3 . 3 . . . Siege Activations . | . . . . . . . . . . . . . Robots Corrupted . | . . . . . . . . . . . . . Combat Hostiles . | . . . . . . . . . . . . . Parts Fried 1 | . . 1 . . . . . . . . . . Impact Corruptions . | . . . . . . . . . . . . . Robots Melted . | . . . . . . . . . . . . . Combat Hostiles . | . . . . . . . . . . . . . Parts Melted 2 | . . . . . . . . . . . 2 . Heat Transferred 1705 | . 50 50 . 175 . 125 558 272 325 . 150 . Parts Sabotaged . | . . . . . . . . . . . . . Parts Stolen . | . . . . . . . . . . . . . Parts Stripped . | . . . . . . . . . . . . . Power Chain Reactions 1 | . . 1 . . . . . . . . . . Missiles Intercepted . | . . . . . . . . . . . . . Alert | -11 -10 -10 -9 -9 -9 -8 -8 -7 -7 -7 -6 -5 ------- Run | Scr Mat Min Mat Min Exi Min Mat Fac Low Low Fac Fac Peak Influence 569 | . 50 273 569 433 . 70 302 337 . . 75 200 Initial 221 | . . 19 27 221 . . 27 137 . . 1 . Average 152 | . 31 127 258 378 . 67 152 223 . . 34 47 Maximum Alert Level 2 | . . 1 2 2 . . 1 1 . . . 1 Low Security (%) 66 | 100 100 80 44 . . 100 61 34 . . 100 94 Level 1 24 | . . 19 27 45 . . 38 65 . . . 5 Level 2 9 | . . . 27 54 . . . . . . . . Level 3 . | . . . . . . . . . . . . . Level 4 . | . . . . . . . . . . . . . Level 5 . | . . . . . . . . . . . . . High Security . | . . . . . . . . . . . . . Max Security . | . . . . . . . . . . . . . Squads Dispatched 15 | . 1 . 4 . . . 2 4 . . . 4 Investigation 5 | . . . 2 . . . . 2 . . . 1 Extermination 1 | . . . . . . . . . . . . 1 Reinforcement 9 | . 1 . 2 . . . 2 2 . . . 2 Assault . | . . . . . . . . . . . . . Garrison . | . . . . . . . . . . . . . Intercept . | . . . . . . . . . . . . . Searches Triggered . | . . . . . . . . . . . . . Construction Impeded . | . . . . . . . . . . . . . Haulers Reinforced . | . . . . . . . . . . . . . Active Scanning Responses . | . . . . . . . . . . . . . Cargo Convoy Interrupts . | . . . . . . . . . . . . . Stealth | -11 -10 -10 -9 -9 -9 -8 -8 -7 -7 -7 -6 -5 --------- Run | Scr Mat Min Mat Min Exi Min Mat Fac Low Low Fac Fac Distress Signals 9 | . 1 . . . . . 4 2 . . . 2 Communications Jammed . | . . . . . . . . . . . . . Distress Signals . | . . . . . . . . . . . . . Times Spotted 113 | . 3 11 18 7 . 3 19 16 10 . 5 21 Peak Tracking Total 10 | . 3 3 3 4 . 3 8 9 3 . 3 10 Tactical Retreats 17 | . . 1 . . . . 6 5 1 . . 4 Traps | -11 -10 -10 -9 -9 -9 -8 -8 -7 -7 -7 -6 -5 ------- Run | Scr Mat Min Mat Min Exi Min Mat Fac Low Low Fac Fac Traps Triggered 5 | . . . . . . . 2 1 . . 2 . Indirectly . | . . . . . . . . . . . . . Trap Hack Attempts . | . . . . . . . . . . . . . Triggered . | . . . . . . . . . . . . . Disarmed . | . . . . . . . . . . . . . Reprogrammed . | . . . . . . . . . . . . . Reused . | . . . . . . . . . . . . . Traps Extracted . | . . . . . . . . . . . . . Installed . | . . . . . . . . . . . . . Triggered . | . . . . . . . . . . . . . Machines | -11 -10 -10 -9 -9 -9 -8 -8 -7 -7 -7 -6 -5 ---------- Run | Scr Mat Min Mat Min Exi Min Mat Fac Low Low Fac Fac Machines Disabled 6 | . . . 3 1 . . . 1 1 . . . Max in Single Turn 1 | . . . 1 . . . . 1 1 . . . Machines Sabotaged . | . . . . . . . . . . . . . Garrisons Compromised . | . . . . . . . . . . . . . Overloaded Fab Kills . | . . . . . . . . . . . . . Hacking | -11 -10 -10 -9 -9 -9 -8 -8 -7 -7 -7 -6 -5 --------- Run | Scr Mat Min Mat Min Exi Min Mat Fac Low Low Fac Fac Machines Accessed 9 | . . . 2 . . . 1 2 . . 3 1 Terminals 9 | . . . 2 . . . 1 2 . . 3 1 Fabricators . | . . . . . . . . . . . . . Repair Stations . | . . . . . . . . . . . . . Recycling Units . | . . . . . . . . . . . . . Scanalyzers . | . . . . . . . . . . . . . Garrison Access . | . . . . . . . . . . . . . Total Hacks 23 | . . . 6 . . . 2 6 . . 6 3 Successful 9 | . . . 3 . . . 1 2 . . 3 . Failed 14 | . . . 3 . . . 1 4 . . 3 3 Catastrophic 4 | . . . 1 . . . . 1 . . 1 1 Database Lockouts . | . . . . . . . . . . . . . Manual 20 | . . . 6 . 1 . 2 4 . . 5 2 Terminals 23 | . . . 6 . . . 2 6 . . 6 3 Fabricators . | . . . . . . . . . . . . . Repair Stations . | . . . . . . . . . . . . . Recycling Units . | . . . . . . . . . . . . . Scanalyzers . | . . . . . . . . . . . . . Garrison Access . | . . . . . . . . . . . . . Terminal Hacks 3 | . . . 1 . . . . 1 . . 1 . Branch Access Points 3 | . . . 1 . . . . 1 . . 1 . Fabricator Hacks . | . . . . . . . . . . . . . Repair Station Hacks . | . . . . . . . . . . . . . Recycling Unit Hacks . | . . . . . . . . . . . . . Scanalyzer . | . . . . . . . . . . . . . Garrison Access Hacks . | . . . . . . . . . . . . . Unauthorized Hacks 6 | . . . 2 . . . 1 1 . . 2 . Terminals 6 | . . . 2 . . . 1 1 . . 2 . Track 1 | . . . . . . . . . . . 1 . Assimilate 1 | . . . 1 . . . . . . . . . Operators 4 | . . . 1 . . . 1 1 . . 1 . Fabricators . | . . . . . . . . . . . . . Repair Stations . | . . . . . . . . . . . . . Recycling Units . | . . . . . . . . . . . . . Scanalyzers . | . . . . . . . . . . . . . Garrison Access . | . . . . . . . . . . . . . Data Cores Recovered . | . . . . . . . . . . . . . Used . | . . . . . . . . . . . . . Hacking Detections 9 | . . . 2 . . . 1 2 . . 3 1 Full Trace Events 5 | . . . 2 . . . . 2 . . . 1 Feedback Events . | . . . . . . . . . . . . . Feedback Blocked . | . . . . . . . . . . . . . Robot Schematics Acquired . | . . . . . . . . . . . . . Robots Built . | . . . . . . . . . . . . . Authchips . | . . . . . . . . . . . . . Time . | . . . . . . . . . . . . . Total Robot Build Rating . | . . . . . . . . . . . . . Part Schematics Acquired . | . . . . . . . . . . . . . Parts Built . | . . . . . . . . . . . . . Authchips . | . . . . . . . . . . . . . Time . | . . . . . . . . . . . . . Total Part Build Rating . | . . . . . . . . . . . . . Parts Repaired . | . . . . . . . . . . . . . Time . | . . . . . . . . . . . . . Parts Recycled . | . . . . . . . . . . . . . Recycled Matter . | . . . . . . . . . . . . . Retrieved Matter . | . . . . . . . . . . . . . Retrieved Components . | . . . . . . . . . . . . . Parts Scanalyzed . | . . . . . . . . . . . . . Part Schematics Acquired . | . . . . . . . . . . . . . Parts Damaged . | . . . . . . . . . . . . . Bothacking | -11 -10 -10 -9 -9 -9 -8 -8 -7 -7 -7 -6 -5 ------------ Run | Scr Mat Min Mat Min Exi Min Mat Fac Low Low Fac Fac Used RIF Installer . | . . . . . . . . . . . . . Robots Hacked . | . . . . . . . . . . . . . Non-combat . | . . . . . . . . . . . . . Combat . | . . . . . . . . . . . . . Robot Hacks Applied . | . . . . . . . . . . . . . Relay Couplers Released . | . . . . . . . . . . . . . Fabnet Peak Effective % . | . . . . . . . . . . . . . Robots Rewired . | . . . . . . . . . . . . . Allies Hacked . | . . . . . . . . . . . . . Hacks Repelled . | . . . . . . . . . . . . . Allies | -11 -10 -10 -9 -9 -9 -8 -8 -7 -7 -7 -6 -5 -------- Run | Scr Mat Min Mat Min Exi Min Mat Fac Low Low Fac Fac Total Allies 3 | . . 2 . 1 . . . . . . . . Largest Group 2 | . . 2 2 1 . . . . . . . . Highest-Rated Group 45 | . . 45 45 31 . . . . . . . . Highest-Rated Ally 31 | . . 31 31 31 . . . . . . . . Total Orders . | . . . . . . . . . . . . . Ally Attacks 38 | . . . 25 13 . . . . . . . . Total Damage 443 | . . . 274 169 . . . . . . . . Kills 9 | . . . 7 2 . . . . . . . . Allies Corrupted . | . . . . . . . . . . . . . Allies Melted . | . . . . . . . . . . . . . Intel | -11 -10 -10 -9 -9 -9 -8 -8 -7 -7 -7 -6 -5 ------- Run | Scr Mat Min Mat Min Exi Min Mat Fac Low Low Fac Fac Robot Analysis Total . | . . . . . . . . . . . . . Derelict Logs Recovered 4 | . . 1 . . . . . . 1 2 . . Drone Launches . | . . . . . . . . . . . . . Drone Recoveries . | . . . . . . . . . . . . . Exploration | -11 -10 -10 -9 -9 -9 -8 -8 -7 -7 -7 -6 -5 ------------- Run | Scr Mat Min Mat Min Exi Min Mat Fac Low Low Fac Fac Turns Passed 4702 | 45 317 528 371 391 365 271 297 514 808 77 436 282 Spaces Moved 4394 | 42 154 410 172 273 289 205 425 590 996 72 416 350 Core 252 | 3 . . . . . . . . 1 . . 248 Treads . | . . . . . . . . . . . . . Legs 1170 | . . 231 172 273 289 205 . . . . . . Wheels 1133 | 39 154 179 . . . . . . 172 72 416 101 Hover . | . . . . . . . . . . . . . Flight 1839 | . . . . . . . 425 590 823 . . 1 Fastest Speed 50 | 50 80 80 120 120 120 120 50 50 50 100 100 50 Average Speed 81 | 77 80 102 161 120 120 120 50 50 59 100 100 67 Slowest Speed 550 | 80 80 120 190 190 120 120 50 50 550 100 100 500 Overloaded Moves . | . . . . . . . . . . . . . Propulsion Burnouts . | . . . . . . . . . . . . . Robots Hopped . | . . . . . . . . . . . . . Cave-ins Triggered . | . . . . . . . . . . . . . Exploration Rate (%) 34 | 4 25 77 18 47 43 50 44 19 79 9 20 12 Regions Visited 12 Branch Regions 6 Pre-discovered Areas 1 | . . 1 . . . . . . . . . . Known Exits Taken 3 | . . . 1 . . . . 1 1 . . . Unknown Exits Taken 9 | 1 1 1 . 1 1 1 1 . . 1 1 . Scrap Searched 3 | . . 1 . . . . . . 2 . . . Spaces Dug 1 | . . . . . . . . . 1 . . . Terrain Destroyed 105 | . . 3 52 16 . . . 29 5 . . . Melee . | . . . . . . . . . . . . . Projectile 5 | . . . . . . . . . 5 . . . AOE 100 | . . 3 52 16 . . . 29 . . . . Terrain Rammed . | . . . . . . . . . . . . . Walls Destroyed . | . . . . . . . . . . . . . Machines Disabled . | . . . . . . . . . . . . . Actions | -11 -10 -10 -9 -9 -9 -8 -8 -7 -7 -7 -6 -5 --------- Run | Scr Mat Min Mat Min Exi Min Mat Fac Low Low Fac Fac Total 5240 | 51 343 482 218 303 307 215 473 785 1169 77 432 385 Wait 576 | . 185 40 8 3 . . 12 173 134 6 . 15 Move 4382 | 41 153 409 171 272 288 204 424 589 995 71 415 350 Hop . | . . . . . . . . . . . . . Pick Up 45 | 4 2 6 5 4 1 2 5 6 7 . 3 . Fast Attach 27 | 6 1 . 1 . 5 . 3 1 1 . 2 7 Attach 25 | . . 4 3 2 . . 6 1 6 . 1 2 Detach 1 | . . 1 . . . . . . . . . . Swap 14 | . . 1 4 4 4 . . . 1 . . . Drop 30 | . . 1 1 3 9 2 3 3 2 . 3 3 Fire 115 | . 2 20 25 15 . 7 16 5 23 . 2 . Melee 16 | . . . . . . . 4 7 . . . 5 Ram 3 | . . . . . . . . . . . . 3 Kick . | . . . . . . . . . . . . . Crush . | . . . . . . . . . . . . . Escape Stasis 6 | . . . . . . . . . . . 6 . Rewire . | . . . . . . . . . . . . . Trap . | . . . . . . . . . . . . . Miscellaneous . | . . . . . . . . . . . . . Route ------- -11/Scrapyard -10/Materials -10/Mines -9/Materials -9/Mines -9/Exiles -8/Mines -8/Materials -7/Factory (discovered 3 exits: Sto / *Low x2) -7/Lower Caves -7/Lower Caves -6/Factory (discovered 3 exits: *Fac / Low x2) -5/Factory History --------- Turn | Location | Event 33 | -11/Scrapyard | Discovered new exit (range 15) 46 | -11/Scrapyard | Entered Materials 52 | -10/Materials | Discovered new exit (range 16) 317 | -10/Materials | Build established: Mutant 363 | -10/Materials | Entered Mines 463 | -10/Mines | Received a Rocket Launcher from a helpful Derelict 490 | -10/Mines | Found a damaged Exp. Sensor Array with a note attached 492 | -10/Mines | Found Prototype Device 854 | -10/Mines | Discovered new exit (range 14) 891 | -10/Mines | Entered Materials 891 | -9/Materials | Accompanied by 2 allies 891 | -9/Materials | Evolved 2 slots: Propulsion x1, Weapon x1 896 | -9/Materials | Led the pair of lost Derelicts to an unsafe place 997 | -9/Materials | Identified exit to Mines 1262 | -9/Materials | Entered Mines 1277 | -9/Mines | Met a Derelict bent on vengeance 1380 | -9/Mines | Received a Mining Laser from a helpful Derelict 1384 | -9/Mines | Assembled infested the area 1648 | -9/Mines | Discovered new exit (range 5) 1653 | -9/Mines | Entered Exiles 1675 | -9/Exiles | Discovered new exit (range 15) 1705 | -9/Exiles | Met 8R-AWN 1722 | -9/Exiles | Met EX-HEX 1761 | -9/Exiles | Build established: Scavenger-Gunner 1799 | -9/Exiles | Met EX-BIN 1825 | -9/Exiles | Aligned with FarCom system 1826 | -9/Exiles | Given EX-Vault access code 1857 | -9/Exiles | Opened EX-Vault 1864 | -9/Exiles | Found Prototype Device 1864 | -9/Exiles | Identified Skeleton Box 1872 | -9/Exiles | Found Prototype Energy Gun 1872 | -9/Exiles | Identified AWS/Thermal 1894 | -9/Exiles | Found Prototype Flight Unit 1918 | -9/Exiles | Warned to stay clear of 0b10 Research branches 2018 | -9/Exiles | Left Exiles lab with Flying Fortress v7 2018 | -9/Exiles | Entered Mines 2279 | -8/Mines | Discovered new exit (range 8) 2289 | -8/Mines | Entered Materials 2289 | -8/Materials | Evolved 2 slots: Propulsion x1, Utility x1 2291 | -8/Materials | Identified Flying Fortress v7 2566 | -8/Materials | Discovered new exit (range 16) 2586 | -8/Materials | Entered Factory 2586 | -7/Factory | Evolved 2 slots: Propulsion x1, Utility x1 2690 | -7/Factory | Identified exit to Storage 2690 | -7/Factory | Identified exit to Lower Caves 2730 | -7/Factory | Build established: Mutant 3100 | -7/Factory | Entered Lower Caves 3104 | -7/Lower Caves | Identified exit to Lower Caves 3212 | -7/Lower Caves | Attacked by a delusional Derelict stockpiling parts 3520 | -7/Lower Caves | Build established: Infiltrator-Gunner 3781 | -7/Lower Caves | Spotted B-75 Beast 3908 | -7/Lower Caves | Entered another Lower Caves area 3912 | -7/Lower Caves | Learned Factory emergency access door positions 3940 | -7/Lower Caves | Encountered a Warlord checkpoint 3947 | -7/Lower Caves | Learned 4 Factory zone layouts 3980 | -7/Lower Caves | Discovered new exit (range 6) 3985 | -7/Lower Caves | Entered Factory 3985 | -6/Factory | Evolved 2 slots: Power x1, Weapon x1 3995 | -6/Factory | Identified exit to Lower Caves 4288 | -6/Factory | Build established: Infiltrator-Skirmisher 4410 | -6/Factory | Discovered new exit (range 12) 4421 | -6/Factory | Entered another Factory area 4421 | -5/Factory | Evolved 2 slots: Utility x2 4554 | -5/Factory | Released all parts (7) 4575 | -5/Factory | Lost 3 parts (1p2w) 4619 | -5/Factory | Core integrity fell below 50% 4642 | -5/Factory | Identified Exp. Sensor Array 4645 | -5/Factory | Core integrity fell below 20% 4703 | -5/Factory | Destroyed by H-66 Slayer with Gauss Rifle Last Messages --------------- 04682_ Acquired Prototype Power Core. 04682_ Identified Lgt. Neutrino Core. 04682_ K-01 Serf cleans the Fusion Modulator. 04684_ Dropped Faulty Lgt. Neutrino Core. 04685_ K-01 Serf cleans the Fusion Modulator. 04685_ Acquired Neutrino Core. 04689_ K-01 Serf cleans the Fusion Modulator. 04689_ Acquired Neutrino Core. 04691_ K-01 Serf cleans the Fusion Modulator. 04694_ K-01 Serf cleans the Manufacturing Mainframe. 04695_ Acquired Field Propulsion Drive. 04696_ K-01 Serf cleans the Manufacturing Mainframe. 04698_ R-10 Processor collects Faulty Lgt. Neutrino Core. 04699_ K-01 Serf cleans the Manufacturing Mainframe. 04700_ Acquired Field Propulsion Drive. 04701_ K-01 Serf cleans the Fusion Modulator. 04701_ Slammed into W-25 Informer. 04703_ Acquired Field Propulsion Drive. 04703_ K-01 Serf cleans the Manufacturing Mainframe. 04703_ Penetrated by Slug. Map ----- +----------------------------------------------------+ | ?????????????????????????????????????????????????? | | ?????????????????????????????????????????????????? | | ?????????????????????????????????????????????????? | | ?????????????????????????????????????????????????? | | ?????????????????????????????????????????????????? | | ?????????????????????????????????????????????????? | | ?????????????????????????????????????????????????? | | ?????????????????????????????????????????????????? | | ??????????????????????? ?????????????????????? | | ????????????????????? #????????????????????? | | ????????????????????? +????????????????????? | | ????????????????????? R #????????????????????? | | ?????????????????????? u #????????????????????? | | ?????????????????????? #????????????????????? | | ??????????????????????# #??????BB????????????? | | ??????????????????????# ##??###BB????????????? | | ??????????????????????# ???????????????? | | ??????????????????????+ k ??????????????? | | ??????????????????????# """ """ "?????????????? | | ??????????????????????# """ """ ""????????????? | | ??????????????????????# """ """ """???????????? | | ??????????????????????# ^ k ????????????? | | ??????????????????????# """ "?????????????? | | ????????????""""??????# """ ""????????????? | | ????????????? # R """ """ ""????????? | | ?????????????????"""" /k @ w R ???????? | | ????????????? # R ] ! ???????? | | ?????????????#######??# u | h??????? | | ???????????????????######/############+##????????? | | ???????????????????# #????????????? ? | | ???????????????????# #??????????? ? | | ???????????????????# """"u"""" #??????????# # | | ???????????????????# """"k"""" #??????????# # | | ???????????????????# """" """" #??????????# # | | ???????????????????# """" """" #??????????# # | | ???????????????????# k #??????????# # | | ???????????????????# """"k"""" #??????????# # | | ??????????????????????"""" """" #??????????# # | | ??????????????????????""""h"""" #??????????# # | | ???????????????????# """" """" #??????????# # | | ???????????????????# #??????????# # | | ?????????????????????########/###??????????# # | | ????????????????????????????# #????????????# # | | ??????????????????????????### ############## # | | ??????????????????????????# | | ??????????????????????????# | | ??????????????????????????+ | | ??????????????????????????# | | ??????????????????????????# | | ??????????????????????????### #### #### | +----------------------------------------------------+ Best States ------------- Heat Dissipation 45 Energy Generation 33 Energy Capacity 530 Matter Stores 300 Matter Capacity 300 Sight Range 16 Terrain Scan Density 10 ECM Strength 1 Jamming Range 12 Evasion (%) 60 Offensive Hacking 11 Item Schematics ----------------- None Robot Schematics ------------------ None Fabricated ------------ Nothing Alien Tech Used ----------------- None Achievements -------------- None Challenges ------------ None Game ------ Seed MasterTacticalInjector Manual? 0 Play Time 00:47:59 Cumulative 33.0 hours Start 2022.08.12 @ 19:03:17 End 2022.08.12 @ 19:49:13 Sessions 1 Manual Loads 0 Difficulty Rogue Special Mode None Game No. 37 Rogue 37 Adventurer 0 Explorer 0 Win Type - Total 0 Types 0/0/0/0/0/0/0/0/0 Lore% 33 Gallery% 31 Achievement% 27 Wizard Run 0 Options --------- ASCII 0 Keyboard 0 Movement Arrows Keybinds 0 Fullscreen 1 Font 18/SmallcapsGlow Map View 76x50 Tactical HUD 1 Map Filters NONE Filters NONE Steam 1 RUN: 34ace99e-6dbe-4981-b58b-ab0782177951